bitfinex/quotes_ETHUSD_20241009
["timestamp","ask_amount","ask_price","bid_price","bid_amount"]
[1728498140799,0.04491855,2422.8,2422.5,4.12794]
[1728498141032,0.04491855,2422.8,2422.4,3.8281]
[1728498141206,4.12738,2422.9,2422.4,7.95616]
[1728498141537,4.12738,2422.9,2422.5,1.208432]
[1728498141750,0.04491855,2422.8,2422.5,1.208432]
[1728498141895,4.17247855,2422.8,2422.5,1.208432]
[1728498142096,4.12765,2422.7,2422.4,0.8281]
[1728498142324,4.12765,2422.7,2421.9,4.18395211]
[1728498142325,4.12788,2422.6,2422.1,4.95673]
[1728498142529,4.17247855,2422.8,2422.2,4.21100219]
[1728498142530,4.12767,2422.7,2422.2,4.21100219]
[1728498142732,0.04491855,2422.5,2422.2,4.12845]
[1728498142934,4.12779,2422.6,2422.3,0.495655]
[1728498143113,0.04491855,2422.4,2422.3,0.495655]
[1728498143319,4.12779,2422.6,2422.3,0.495655]
[1728498143517,4.17304855,2422.4,2422.1,0.8281]
[1728498143718,4.17304855,2422.4,2421.8,4.51500679]
[1728498143719,4.72274591,2422.6,2421.8,1.14707679]
[1728498144002,0.05,2424.3,2421.5,0.7612]
[1728498144003,4.90379,2422.2,2421.5,0.7612]
[1728498144197,4.12822,2422.4,2422.1,0.8233]
[1728498144627,4.12801,2422.5,2422.2,0.08255721]
[1728498144839,4.12801,2422.5,2422.1,0.8233]
[1728498145010,4.12801,2422.5,2422.2,0.08255554]
[1728498145340,4.12788,2422.6,2422.2,0.99887809]
[1728498145698,4.12765,2422.7,2422.2,5.12725809]
[1728498146443,4.12806,2422.5,2422.2,0.99887809]
[1728498146626,4.12861,2422.2,2421.8,0.7786]
[1728498146865,4.12831,2422.3,2421.8,0.7786]
[1728498146999,4.12814,2422.4,2421.9,8.34042499]
[1728498147204,4.12814,2422.4,2422.0,0.08256159]
[1728498147414,4.12838,2422.3,2422.0,0.49900416]
[1728498147620,4.72274591,2422.3,2421.4,0.7909]
[1728498147841,4.72274591,2422.3,2421.5,4.12966]
[1728498147842,4.12891,2422.0,2421.5,4.12966]
[1728498148013,4.12909,2421.9,2421.4,4.92071]
[1728498148503,4.12909,2421.9,2421.5,4.12963]
[1728498148741,8.85105591,2422.3,2421.6,0.905034]
[1728498148742,4.12884,2422.0,2421.6,0.905034]
[1728498148942,4.12867,2422.1,2421.6,8.034514]
[1728498149314,4.12867,2422.1,2421.7,4.21189086]
[1728498149726,4.1284,2422.3,2421.7,4.12932]
[1728498150112,4.12851,2422.2,2421.8,4.12908]
[1728498150345,4.12851,2422.2,2421.9,0.412908]
[1728498151639,4.12832,2422.3,2421.9,0.412908]
[1728498151840,4.12832,2422.3,2422.0,0.08256495]
[1728498152165,4.12831,2422.3,2422.0,0.85166495]
[1728498152323,4.17263885,2422.2,2422.0,0.7691]
[1728498152520,4.12883,2422.0,2421.5,4.12965]
[1728498152758,4.12883,2422.0,2421.6,0.904094]
[1728498153136,0.04415885,2421.9,2421.6,5.033574]
[1728498153532,0.04415885,2421.9,2421.7,0.0825664]
[1728498153765,4.12871,2422.1,2421.6,9.162944]
[1728498153962,4.12871,2422.1,2421.8,0.08256649]
[1728498154168,4.12871,2422.1,2421.8,1.00710154]
[1728498154554,8.85117591,2422.3,2421.8,1.00710154]
[1728498154555,4.12854,2422.2,2421.8,1.00710154]
[1728498155343,4.12609,2423.7,2421.8,1.00710154]
[1728498155344,4.12773,2422.7,2422.0,0.7715]
[1728498155550,4.12814,2422.4,2422.0,0.7715]
[1728498155864,4.72274591,2422.6,2422.0,0.7715]
[1728498155865,4.12833,2422.3,2422.0,0.7715]
[1728498156431,4.12814,2422.4,2422.0,0.7715]
[1728498157069,4.12797,2422.5,2422.0,4.90016]
[1728498157658,4.72274591,2422.6,2422.0,4.90016]
[1728498157840,4.12799,2422.5,2422.1,5.331508]
[1728498158044,4.12778,2422.7,2422.2,4.12838]
[1728498158281,4.12742,2422.9,2422.4,4.12813]
[1728498158282,4.12748,2422.8,2422.4,4.12813]
[1728498158480,4.12729,2422.9,2422.5,4.21049567]
[1728498158785,4.12729,2422.9,2422.6,0.7998]
[1728498158979,4.12753,2422.8,2422.7,0.08254405]
[1728498159181,4.12753,2422.8,2422.6,0.88234576]
[1728498159397,4.16886272,2422.8,2422.6,1.38339334]
[1728498160528,4.16886272,2422.8,2422.7,4.12762]
[1728498160529,0.04133272,2422.8,2422.7,4.12762]
[1728498160725,0.04133272,2422.8,2422.6,5.51115334]
[1728498160887,4.12702,2423.1,2422.6,1.30084758]
[1728498161089,0.0399136,2423.0,2422.7,0.54287176]
[1728498161288,0.0399136,2423.0,2422.8,0.08253581]
[1728498161811,4.12745,2422.8,2422.7,0.54287176]
[1728498162019,0.0399136,2423.0,2422.5,4.12795]
[1728498162020,4.12743,2422.9,2422.5,4.12795]
[1728498162330,4.12743,2422.9,2422.4,0.8316]
[1728498162331,4.1673836,2422.8,2422.4,4.9597]
[1728498162533,4.12794,2422.6,2422.4,0.8316]
[1728498162688,4.12806,2422.5,2422.1,2.034508]
[1728498162893,4.16828631,2422.4,2422.1,2.034508]
[1728498163100,4.16828631,2422.4,2422.2,0.9163298]
[1728498163528,0.04005631,2422.4,2422.2,0.9163298]
[1728498164036,4.1283,2422.3,2421.9,3.0]
[1728498164329,0.04005631,2422.4,2421.2,0.8316]
[1728498164330,0.83601972,2422.2,2421.2,0.8316]
[1728498164533,4.12903,2421.9,2421.3,4.12997]
[1728498164836,4.12889,2422.0,2421.5,4.12963]
[1728498165132,0.04001972,2421.9,2421.6,0.825937]
[1728498165690,4.12918,2421.8,2421.4,4.12976]
[1728498165914,0.03986969,2421.7,2421.4,8.2595]
[1728498166120,4.12906,2421.9,2421.4,4.12975]
[1728498166323,0.03980746,2421.6,2421.4,4.12975]
[1728498166633,4.12906,2421.9,2421.4,4.12975]
[1728498166831,0.03980746,2421.5,2421.4,7.12974]
[1728498166986,4.12906,2421.9,2421.4,7.12974]
[1728498167183,0.03980746,2421.5,2421.4,7.12974]
[1728498167539,0.03980746,2421.5,2421.4,7.12973]
[1728498167834,4.12906,2421.9,2421.4,7.12973]
[1728498167991,0.03980746,2421.5,2421.4,7.12973]
[1728498168186,4.12876,2422.1,2421.6,4.1294]
[1728498168501,4.72274591,2422.4,2421.6,4.1294]
[1728498168502,0.03959881,2422.0,2421.8,4.12905]
[1728498168830,8.25687,2422.3,2421.8,4.12905]
[1728498168831,4.1285,2422.2,2421.8,4.12905]
[1728498169028,0.03959881,2421.9,2421.8,4.12905]
[1728498169333,0.03959881,2421.9,2421.8,4.954892]
[1728498169514,4.1285,2422.2,2421.8,4.954892]
[1728498169834,0.03959881,2421.9,2421.8,4.954892]
[1728498170001,4.1285,2422.2,2421.8,4.12905]
[1728498170204,0.03833742,2421.9,2421.8,4.12905]
[1728498170408,8.85103591,2422.4,2421.5,0.7972]
[1728498170409,4.12876,2422.1,2421.6,4.12942]
[1728498170717,4.12888,2422.0,2421.6,4.12942]
[1728498170920,4.16721376,2422.0,2421.6,4.12942]
[1728498171224,0.03833376,2422.0,2421.7,4.621932]
[1728498171585,4.12851,2422.2,2421.7,4.621932]
[1728498171839,0.03834109,2421.9,2421.7,4.621932]
[1728498172035,4.12851,2422.2,2421.7,4.621932]
[1728498172517,4.16700742,2422.1,2421.7,4.621932]
[1728498172719,0.03833742,2422.1,2421.8,5.086743]
[1728498172892,0.03833742,2422.1,2421.9,4.12898]
[1728498173096,4.12837,2422.3,2421.9,4.12898]
[1728498173315,4.16556671,2422.2,2421.8,0.8751352]
[1728498173537,4.12897,2422.0,2421.7,0.492662]
[1728498173717,8.25748,2422.1,2421.7,0.492662]
[1728498174062,0.03706305,2421.9,2421.8,0.08257126]
[1728498174265,4.1287,2422.1,2421.7,4.621952]
[1728498174466,0.03707403,2421.9,2421.7,4.621952]
[1728498174623,4.12848,2422.2,2421.8,5.3042822]
[1728498174819,4.12848,2422.2,2421.9,0.08256738]
[1728498175730,8.85102591,2422.4,2421.7,0.492662]
[1728498175731,8.25678,2422.3,2421.7,0.492662]
[1728498175939,4.12861,2422.2,2421.7,4.621972]
[1728498176138,4.12865,2422.1,2421.8,0.8751362]
[1728498176329,4.12849,2422.2,2421.8,5.0042762]
[1728498176667,4.12813,2422.5,2422.0,4.95623]
[1728498176876,4.12818,2422.4,2422.0,0.8275]
[1728498177051,4.12847,2422.2,2422.1,0.08255998]
[1728498177233,4.72274591,2422.4,2421.9,4.21140512]
[1728498177574,4.12789,2422.6,2422.2,4.12837]
[1728498177730,5.52644591,2422.7,2422.3,4.21085646]
[1728498177925,4.72274591,2422.7,2422.2,4.91016]
[1728498178130,8.85052591,2422.7,2422.2,4.91016]
[1728498178436,4.12746,2422.8,2422.4,4.12812]
[1728498178653,4.12746,2422.8,2422.5,0.08255013]
[1728498179168,4.12746,2422.8,2422.4,0.91205117]
[1728498179464,4.12746,2422.8,2422.5,0.08254699]
[1728498179820,4.12746,2422.8,2422.4,0.91205117]
[1728498180367,4.72274591,2422.7,2422.1,3.0]
[1728498180576,3.83591115,2422.2,2421.9,4.91065]
[1728498180929,3.83591115,2422.6,2421.9,4.91056]
[1728498181131,3.83591115,2422.6,2422.3,4.12821]
[1728498181371,3.83591115,2422.6,2422.0,3.57856962]
[1728498181372,3.83591115,2422.8,2422.4,4.12811]
[1728498181669,4.12763,2422.7,2422.3,4.12824]
[1728498181875,3.83591115,2422.8,2422.5,4.12785]
[1728498182029,3.83591115,2422.8,2422.5,4.12789]
[1728498182242,3.83591115,2422.8,2422.6,0.412789]
[1728498182824,3.83591115,2422.8,2422.5,4.12795]
[1728498183029,7.96345115,2422.8,2422.2,0.7909]
[1728498183226,4.12764,2422.7,2422.3,4.12821]
[1728498183652,3.83591115,2422.6,2422.3,4.12821]
[1728498184174,7.96420115,2422.4,2422.0,0.57856962]
[1728498184383,3.83591115,2422.3,2422.0,4.70737962]
[1728498184609,3.83591115,2422.3,2422.1,0.95867196]
[1728498184807,0.8261,2422.7,2422.3,4.12824]
[1728498184808,3.83591115,2422.7,2422.3,4.12824]
[1728498185097,0.8261,2423.0,2422.1,0.95867196]
[1728498185098,3.83591115,2422.5,2422.1,0.95867196]
[1728498185403,4.12816,2422.4,2422.1,0.95867196]
[1728498185695,3.83591115,2422.5,2422.2,0.08255892]
[1728498186006,3.83591115,2422.5,2422.2,4.21101892]
[1728498186307,3.83591115,2422.5,2422.2,0.64744792]
[1728498186492,3.83591115,2422.5,2422.2,4.77588792]
[1728498186654,0.8261,2423.0,2422.2,0.564889]
[1728498186655,3.83591115,2422.3,2422.2,0.564889]
[1728498186858,3.83591115,2422.3,2422.0,8.83595962]
[1728498187084,3.83591115,2422.3,2422.0,4.70723962]
[1728498187283,4.12805,2422.5,2422.1,4.12848]
[1728498187284,7.96391115,2422.5,2422.1,4.12848]
[1728498187879,3.83591115,2422.5,2422.2,4.12845]
[1728498188084,3.83591115,2422.5,2422.3,0.08255732]
[1728498188303,4.12757,2422.8,2422.3,5.04468605]
[1728498188505,3.83591115,2422.9,2422.7,4.1276]
[1728498188687,7.96321115,2422.9,2422.5,4.12788]
[1728498189594,3.83591115,2422.9,2422.6,4.12779]
[1728498189802,3.83591115,2422.9,2422.7,0.412779]
[1728498190569,3.83591115,2422.9,2422.7,0.49532073]
[1728498190801,7.96319115,2422.9,2422.7,0.49532073]
[1728498191100,7.96319115,2422.9,2422.5,4.12795]
[1728498191658,0.03870393,2422.8,2422.7,4.12762]
[1728498191862,3.83591115,2423.3,2422.9,0.7781]
[1728498192071,3.83591115,2423.3,2423.1,4.12694]
[1728498192273,3.83591115,2423.3,2423.1,0.0825292]
[1728498192580,3.83591115,2423.3,2422.6,4.12779]
[1728498192581,4.12694,2423.2,2422.7,7.1276]
[1728498192914,3.83591115,2423.1,2422.8,1.28984239]
[1728498193069,7.96291115,2423.1,2422.8,1.28984239]
[1728498193716,3.83591115,2423.1,2422.8,5.41726239]
[1728498193870,4.12711,2423.0,2422.8,1.28984239]
[1728498194070,3.83591115,2423.1,2422.8,5.41727239]
[1728498194326,3.83591115,2423.3,2423.0,4.12711]
[1728498194477,3.83591115,2423.5,2423.2,0.7672]
[1728498194672,0.8205,2423.8,2423.4,4.12643]
[1728498194673,3.83591115,2423.7,2423.4,4.12643]
[1728498194923,3.83591115,2423.7,2423.2,4.89388]
[1728498195223,3.83591115,2423.7,2423.4,4.12639]
[1728498195375,0.8205,2424.1,2423.6,4.12593]
[1728498195376,3.83591115,2423.9,2423.6,4.12593]
[1728498195575,3.83591115,2423.9,2423.7,4.2083587]
[1728498196182,3.83591115,2423.9,2423.7,0.0825087]
[1728498196371,4.12526,2424.1,2423.7,0.0825087]
[1728498196599,8.83967641,2424.2,2423.7,0.8337087]
[1728498196832,8.83967641,2424.2,2423.8,4.62163787]
[1728498197009,8.83967641,2424.2,2423.9,4.20804939]
[1728498197010,4.71444641,2424.2,2423.9,4.20804939]
[1728498197177,4.94492,2424.6,2423.8,4.62163787]
[1728498197178,4.71444641,2424.5,2423.8,4.62160787]
[1728498197379,4.12505,2424.3,2423.8,4.62160787]
[1728498197724,4.12508,2424.2,2423.8,4.62160787]
[1728498197873,4.12477,2424.4,2423.9,0.53728079]
[1728498198078,4.71444641,2424.5,2424.0,0.08249725]
[1728498198323,4.12514,2424.2,2423.7,4.87704]
[1728498198689,4.12474,2424.4,2423.9,4.12555]
[1728498198909,4.12474,2424.4,2423.7,0.7512]
[1728498198910,4.71444641,2424.5,2424.0,4.20777733]
[1728498199112,4.94487,2424.6,2424.0,4.20777733]
[1728498199280,4.12465,2424.5,2424.1,0.42077773]
[1728498200219,4.12481,2424.4,2424.1,0.42077773]
[1728498200388,4.12481,2424.4,2423.9,3.0]
[1728498200588,4.71444641,2424.5,2423.9,3.0]
[1728498200589,4.12507,2424.2,2423.9,3.0]
[1728498200811,4.12507,2424.2,2423.7,7.877]
[1728498201379,4.12498,2424.3,2423.9,3.0]
[1728498201595,4.12487,2424.4,2423.9,3.0]
[1728498201596,4.12508,2424.2,2423.9,3.0]
[1728498201775,4.12508,2424.2,2423.9,4.200272]
[1728498202426,4.71444641,2424.5,2424.0,0.08249961]
[1728498202579,8.83856641,2424.8,2424.3,4.12483]
[1728498202924,4.71444641,2424.8,2424.4,4.20704989]
[1728498203133,0.8331,2424.9,2424.5,4.12445]
[1728498203380,9.67115641,2425.1,2424.6,4.20678506]
[1728498203575,9.67115641,2425.1,2424.6,4.20677506]
[1728498203776,9.67115641,2425.1,2424.6,4.1243]
[1728498203992,9.67115641,2425.1,2424.7,0.41243]
[1728498203993,4.12371,2425.0,2424.7,0.41243]
[1728498204269,5.54754641,2425.1,2424.7,0.08247316]
[1728498204474,4.95625,2425.4,2424.7,0.87457316]
[1728498204692,4.95625,2425.4,2424.9,4.12376]
[1728498204842,4.95625,2425.4,2425.0,4.20608212]
[1728498205363,0.7726,2425.7,2425.1,0.08246215]
[1728498205573,4.12269,2425.6,2425.3,0.7921]
[1728498205742,4.12243,2425.8,2425.3,0.7921]
[1728498205943,4.12243,2425.8,2425.4,4.20546856]
[1728498206158,8.83663641,2425.9,2425.4,8.32840856]
[1728498206380,8.83663641,2425.9,2425.4,4.12294]
[1728498206381,4.12239,2425.8,2425.4,4.12294]
[1728498206548,8.83663641,2425.9,2425.4,5.026781]
[1728498206949,4.71444641,2425.9,2425.4,5.026781]
[1728498207359,4.12209,2426.0,2425.5,7.12281]
[1728498207572,8.83612641,2426.2,2425.7,4.12237]
[1728498207881,0.8133,2426.5,2425.5,3.0]
[1728498207882,4.12136,2426.4,2425.9,4.1221]
[1728498208195,4.12136,2426.4,2425.9,5.0350413]
[1728498208340,9.64892641,2426.5,2426.0,4.122]
[1728498208537,9.64890641,2426.5,2425.9,5.0351213]
[1728498208737,4.12135,2426.4,2425.9,5.0351213]
[1728498209143,4.12173,2426.2,2425.8,0.8029]
[1728498210174,4.12186,2426.1,2425.6,0.7727]
[1728498210376,8.83617641,2426.2,2425.7,3.0]
[1728498210583,4.12185,2426.1,2425.7,3.0]
[1728498210794,4.12187,2426.1,2425.7,3.0]
[1728498211138,8.83617641,2426.2,2425.7,3.0]
[1728498211370,12.95796641,2426.2,2425.7,3.789522]
[1728498211744,8.83617641,2426.2,2425.7,7.912032]
[1728498212045,4.71444641,2426.2,2425.8,4.12229]
[1728498212280,4.71444641,2426.2,2425.7,7.912032]
[1728498212473,4.71444641,2426.2,2425.7,7.911932]
[1728498212785,4.71444641,2426.2,2425.8,0.8684632]
[1728498213091,4.71444641,2426.2,2425.8,4.9908032]
[1728498213244,8.83618641,2426.2,2425.8,0.8684632]
[1728498214654,4.71444641,2426.2,2425.8,0.8684632]
[1728498214850,4.71444641,2426.2,2425.9,0.79908732]
[1728498215678,4.12192,2426.1,2425.6,3.7727]
[1728498216739,4.12192,2426.1,2425.6,0.7727]
[1728498216979,4.12192,2426.1,2425.6,3.7727]
[1728498218053,4.12192,2426.1,2425.6,7.89537]
[1728498218567,4.12147,2426.4,2425.7,0.08243485]
[1728498218738,4.12147,2426.4,2425.9,4.12214]
[1728498218941,4.12147,2426.4,2426.0,0.08242711]
[1728498219455,4.12147,2426.4,2425.9,4.12214]
[1728498219786,4.12147,2426.4,2425.7,4.50788349]
[1728498219787,8.83627641,2426.2,2425.7,0.38551349]
[1728498220080,12.95809641,2426.2,2425.7,0.38551349]
[1728498220282,8.83626641,2426.2,2425.7,0.38551349]
[1728498220481,12.95806641,2426.2,2425.7,0.38551349]
[1728498220646,8.83624641,2426.2,2425.7,0.38551349]
[1728498221386,4.12184,2426.1,2425.7,0.38551349]
[1728498221737,8.83624641,2426.2,2425.7,0.38551349]
[1728498221941,12.95805641,2426.2,2425.7,0.38551349]
[1728498222166,8.83675641,2425.9,2425.4,3.903831]
[1728498222367,4.12236,2425.8,2425.4,3.903831]
[1728498222815,4.12283,2425.6,2425.0,0.7885]
[1728498222982,4.12288,2425.5,2425.0,0.7885]
[1728498223331,4.1227,2425.6,2425.1,4.12353]
[1728498223672,4.12225,2425.9,2425.4,4.12303]
[1728498223913,4.12225,2425.9,2425.4,4.91153]
[1728498224217,4.12225,2425.9,2425.4,5.815011]
[1728498225208,4.12225,2425.9,2425.4,1.691981]
[1728498225766,4.12235,2425.8,2425.4,1.691981]
[1728498226209,8.83679641,2425.8,2425.4,1.691981]
[1728498226415,8.83738641,2425.5,2425.0,7.12369]
[1728498226715,4.71444641,2425.5,2425.1,0.08245919]
[1728498226867,4.71444641,2425.5,2425.1,4.20590919]
[1728498227069,8.83692641,2425.8,2425.1,0.83295792]
[1728498227407,4.12262,2425.7,2425.1,4.12342]
[1728498227596,4.12262,2425.7,2425.2,4.12334]
[1728498228885,4.1228,2425.6,2424.7,3.20684359]
[1728498229087,4.12301,2425.5,2425.0,7.12368]
[1728498229286,4.1227,2425.6,2425.1,0.08245654]
[1728498229641,4.1227,2425.6,2425.1,5.02937654]
[1728498229783,4.12269,2425.6,2425.1,5.02937654]
[1728498229968,4.71444641,2425.8,2425.3,4.12307]
[1728498230170,8.83687641,2425.8,2425.1,4.94683]
[1728498230386,4.1226,2425.7,2425.2,0.9071583]
[1728498230616,4.1226,2425.7,2425.2,5.0304283]
[1728498231420,4.1226,2425.7,2425.3,0.08245032]
[1728498231915,8.24527,2425.7,2425.3,0.08245032]
[1728498232375,0.8218,2425.3,2424.4,0.86506388]
[1728498232720,4.71444641,2425.2,2424.8,4.12403]
[1728498232923,4.71444641,2425.2,2424.9,0.08246636]
[1728498233217,4.1232,2425.3,2424.9,0.08246636]
[1728498233478,8.83738641,2425.5,2425.0,0.08246512]
[1728498234548,8.83738641,2425.5,2425.0,4.20615512]
[1728498234755,8.83738641,2425.5,2425.0,0.08246512]
[1728498234985,4.71444641,2425.5,2425.0,4.20609512]
[1728498235281,4.71444641,2425.5,2425.0,4.12363]
[1728498235438,4.71444641,2425.5,2425.1,4.92692796]
[1728498237084,8.83730641,2425.5,2425.1,0.80341796]
[1728498237850,8.83730641,2425.5,2424.9,3.91054964]
[1728498238060,4.1232,2425.3,2424.9,3.91054964]
[1728498238267,4.1231,2425.4,2424.9,3.91054964]
[1728498238460,3.82669811,2425.1,2424.9,3.91054964]
[1728498238660,3.82669811,2425.1,2424.9,8.03440964]
[1728498238990,3.82669811,2425.1,2425.0,1.21583096]
[1728498241298,3.82669811,2425.1,2424.8,0.86506388]
[1728498241468,3.82669811,2424.9,2424.7,1.63986388]
[1728498241676,3.82669811,2425.1,2424.8,4.98903388]
[1728498242213,3.82669811,2425.3,2424.9,0.86506388]
[1728498242426,3.82669811,2425.3,2425.2,0.7919]
[1728498242916,3.82669811,2425.7,2425.3,4.12312]
[1728498243128,3.77669811,2425.7,2425.4,4.12295]
[1728498243722,3.77669811,2425.7,2425.3,4.12312]
[1728498244579,3.77669811,2425.7,2425.3,8.24622]
[1728498244789,3.82669811,2425.5,2425.2,2.64735727]
[1728498244984,3.82669811,2425.5,2425.3,0.80683431]
[1728498245785,4.62159811,2425.5,2425.0,0.86506388]
[1728498246034,3.82669811,2425.1,2425.0,0.86506388]
[1728498246398,3.82669811,2425.1,2424.9,7.98893388]
[1728498246736,3.82669811,2425.1,2424.9,3.86506388]
[1728498246950,3.82669811,2425.1,2424.9,0.86506388]
[1728498247233,3.82669811,2425.1,2424.8,0.86506388]
[1728498247414,4.12336,2425.3,2424.8,0.86506388]
[1728498247415,4.1234,2425.2,2424.9,0.21626597]
[1728498247600,3.82669811,2425.0,2424.9,0.21626597]
[1728498247805,7.95041811,2425.0,2424.7,0.86506388]
[1728498248007,7.95041811,2425.0,2424.6,1.29759582]
[1728498248008,4.91862,2425.0,2424.6,0.86506388]
[1728498248206,3.82669811,2424.7,2424.6,0.86506388]
[1728498248407,3.82669811,2424.7,2424.5,0.21626597]
[1728498248609,3.82669811,2424.7,2424.3,0.86506388]
[1728498248810,3.82669811,2424.5,2424.3,0.86506388]
[1728498249590,3.82669811,2424.5,2424.3,0.94755346]
[1728498250534,4.12424,2424.7,2424.3,0.94755346]
[1728498250535,8.24857,2424.7,2424.3,0.94755346]
[1728498250862,4.12424,2424.7,2424.3,0.94755346]
[1728498251332,4.12424,2424.7,2424.3,5.13679216]
[1728498251533,4.12424,2424.7,2424.3,2.13679216]
[1728498252234,4.12424,2424.7,2424.3,1.27172828]
[1728498252235,8.24857,2424.7,2424.3,1.27172828]
[1728498252594,4.12424,2424.7,2424.3,1.27172828]
[1728498253496,4.71193589,2424.8,2424.3,1.27172828]
[1728498253690,4.91861,2425.0,2424.5,4.1245]
[1728498253890,4.91816,2425.3,2424.6,0.08247665]
[1728498254225,4.12339,2425.2,2424.7,4.91609]
[1728498254545,4.12339,2425.2,2424.8,0.08246962]
[1728498255010,4.12339,2425.2,2424.7,0.7919]
[1728498255339,4.12339,2425.2,2424.8,0.904049]
[1728498255499,4.12364,2425.1,2424.8,0.904049]
[1728498256442,4.12371,2425.0,2424.5,7.12452]
[1728498256639,4.12356,2425.1,2424.5,7.12452]
[1728498256823,4.12356,2425.1,2424.6,4.12439]
[1728498257137,4.12379,2425.0,2424.5,7.12453]
[1728498257436,4.12356,2425.1,2424.6,4.915973]
[1728498258193,4.12356,2425.1,2424.7,0.08247232]
[1728498258514,4.71193589,2425.4,2424.8,4.91585]
[1728498258515,8.83498589,2425.4,2424.8,4.91585]
[1728498258726,8.83498589,2425.4,2424.9,4.2063359]
[1728498259297,8.83498589,2425.4,2424.9,4.2062759]
[1728498259603,8.83498589,2425.4,2425.0,0.49981759]
[1728498260535,8.83448589,2425.7,2425.0,0.58228181]
[1728498260739,4.71193589,2426.0,2425.5,4.12284]
[1728498261066,4.12197,2426.1,2425.6,4.20510449]
[1728498261419,4.12204,2426.0,2425.5,3.0]
[1728498261819,4.12252,2425.7,2425.3,0.8188]
[1728498262072,4.71193589,2425.8,2425.0,3.8164]
[1728498262073,4.12295,2425.5,2425.0,3.8164]
[1728498262247,4.12348,2425.2,2425.0,2.23908697]
[1728498262456,4.71193589,2425.5,2424.7,1.73012776]
[1728498262457,4.12321,2425.3,2424.7,5.80556388]
[1728498262771,4.12321,2425.3,2424.8,4.20648625]
[1728498262972,4.12304,2425.4,2424.9,4.12386]
[1728498263268,8.83480589,2425.5,2425.0,4.12371]
[1728498263422,8.83480589,2425.5,2425.1,0.42061762]
[1728498263630,4.12304,2425.4,2424.9,4.12385]
[1728498263830,4.71193589,2425.5,2425.0,4.20615035]
[1728498264025,8.83481589,2425.5,2425.0,4.20615035]
[1728498264256,8.83481589,2425.5,2425.0,0.08246035]
[1728498264435,4.12303,2425.4,2424.9,4.12385]
[1728498264733,4.12303,2425.4,2425.0,0.49889139]
[1728498264939,4.12337,2425.2,2424.8,3.0]
[1728498265871,4.12303,2425.4,2424.8,7.12404]
[1728498266020,4.12303,2425.4,2424.7,5.80556388]
[1728498266021,4.71193589,2425.2,2424.7,4.68146388]
[1728498266339,4.12382,2425.0,2424.7,1.68146388]
[1728498266536,4.12356,2425.1,2424.8,3.0]
[1728498266874,4.12356,2425.1,2424.7,5.49137205]
[1728498267077,4.12378,2425.0,2424.7,5.49137205]
[1728498267225,8.24724,2425.1,2424.7,5.49137205]
[1728498267426,4.12382,2425.0,2424.7,2.49137205]
[1728498267634,4.12374,2425.0,2424.7,0.8164]
[1728498267866,4.12356,2425.1,2424.7,0.8164]
[1728498268257,4.12371,2425.0,2424.7,0.8164]
[1728498268856,4.12356,2425.1,2424.7,0.8164]
[1728498269166,4.12356,2425.1,2424.7,2.23918597]
[1728498269372,8.83532589,2425.2,2424.7,6.44581064]
[1728498269578,4.12339,2425.2,2424.7,7.31087452]
[1728498270674,8.83489589,2425.5,2424.9,4.12386]
[1728498270879,4.12326,2425.3,2425.0,0.08246516]
[1728498271046,4.12326,2425.3,2424.8,4.12393]
[1728498271229,4.12339,2425.2,2424.9,0.72281799]
[1728498272031,4.12339,2425.2,2424.7,7.22843985]
[1728498272326,4.12324,2425.3,2424.8,4.98903388]
[1728498272537,3.82650483,2425.2,2425.0,4.12368]
[1728498272729,3.82650483,2425.4,2425.0,4.20614648]
[1728498272958,3.82650483,2425.4,2425.1,0.91950804]
[1728498274071,3.82650483,2425.2,2425.1,0.91950804]
[1728498274377,3.82650483,2425.4,2425.2,4.12334]
[1728498274582,3.82650483,2425.4,2425.2,5.21095162]
[1728498277987,3.82650483,2425.4,2425.1,5.75080388]
[1728498278132,3.82650483,2425.4,2425.2,0.86506388]
[1728498278333,3.82650483,2425.4,2425.1,5.75080388]
[1728498278581,3.82650483,2425.4,2425.1,7.34101663]
[1728498278902,3.82650483,2425.2,2425.1,1.59021275]
[1728498279086,3.82650483,2425.2,2425.0,3.86506388]
[1728498279551,3.82650483,2425.2,2425.0,0.86506388]
[1728498279891,3.82650483,2425.4,2425.0,5.07122959]
[1728498280388,7.94954483,2425.4,2425.0,5.07122959]
[1728498280594,3.82650483,2425.4,2425.1,1.34926254]
[1728498281683,7.94956483,2425.4,2425.1,1.34926254]
[1728498282399,3.82650483,2425.2,2425.0,0.86506388]
[1728498282614,4.12354,2425.1,2424.7,0.86506388]
[1728498282762,3.82650483,2424.8,2424.6,4.98941388]
[1728498283104,0.7817,2425.4,2424.6,4.98941388]
[1728498283105,3.82650483,2425.2,2424.9,4.12379]
[1728498283263,3.82650483,2425.4,2425.0,4.95695652]
[1728498283460,3.82650483,2425.6,2425.3,4.12313]
[1728498283660,3.82650483,2425.6,2425.3,4.20558604]
[1728498285762,3.82650483,2425.6,2425.3,4.12313]
[1728498286045,3.82650483,2425.6,2425.4,0.42055844]
[1728498286164,3.82650483,2425.6,2425.5,0.7692]
[1728498288675,3.82650483,2425.6,2425.4,0.42055844]
[1728498292220,3.82650483,2425.6,2425.1,1.65058173]
[1728498292521,4.12354,2425.1,2424.8,0.86448173]
[1728498292826,4.12354,2425.1,2424.7,1.65058173]
[1728498292827,3.82650483,2424.9,2424.7,1.65058173]
[1728498293038,3.82650483,2424.9,2424.8,0.70724276]
[1728498294421,7.94970483,2425.3,2424.9,4.12381]
[1728498294622,3.82650483,2425.3,2424.9,4.20627836]
[1728498295529,3.82650483,2425.3,2425.0,4.12366]
[1728498295726,3.82650483,2425.3,2425.1,0.91944201]
[1728498295932,7.94970483,2425.3,2424.9,4.2063186]
[1728498296295,3.82650483,2425.3,2424.9,5.07076033]
[1728498296708,7.94971483,2425.3,2424.9,4.2062786]
[1728498297449,7.94971483,2425.3,2424.9,5.07076033]
[1728498298027,3.82650483,2425.3,2424.9,5.07076033]
[1728498298227,3.82650483,2425.3,2425.0,0.57780031]
[1728498298556,7.94973483,2425.3,2425.0,0.57780031]
[1728498298740,3.82650483,2425.3,2425.0,0.57780031]
[1728498299145,3.82650483,2425.3,2425.0,4.70150031]
[1728498299328,3.82650483,2425.3,2425.0,5.56598204]
[1728498299527,3.82650483,2425.3,2425.1,1.09873779]